Workbook

Sheet Superpesis
B1: Lotta Lax | E1: 2.1.1999 Pori
B2: SUPERPESIS | E2: RUNKOSARJA | I2: Kärkilyönnit (KL), pesänvälit | Q2: Runkosarja | U2: Ylempi loppusarja | Z2: Alempi loppusarja | AG2: Arvo-ottelut ja mitalit
B3: Vuosi | C3: Sija | D3: Seura | E3: OTT | F3: KUN | G3: LÖI | H3: TOI | I3: KL | J3: 0 > 1 | K3: 1 > 2 | L3: 2 > 3 | M3: 3 > k | N3: KL-% | P3: LÖI | Q3: TOI | R3: L+T | S3: KL | U3: OTT | V3: KUN | W3: LÖI | X3: TOI | Y3: KL | Z3: OTT | AA3: KUN | AB3: LÖI | AC3: TOI | AD3: KL | AE3: IL | AF3: LL | AG3: Halli | AH3: K | AI3: H | AJ3: P
B4: 2016 | D4: Pesäkarhut 2 | F4: ykköspesis
B5: 2017 | D5: Pesäkarhut 2 | F5: ykköspesis
B6: 2017 | C6: 2. | D6: Pesäkarhut | E6: 1 | F6: 0 | G6: 0 | H6: 0 | I6: 1 | J6: 0 | K6: 1 | L6: 0 | M6: 0 | N6: 16.7 % | O6: 6 | AG6: 1 | AI6: 1
B7: 2018 | D7: Pesäkarhut 2 | F7: ykköspesis
B8: 2018 | C8: 3. | D8: Pesäkarhut | E8: 13 | F8: 0 | G8: 2 | H8: 1 | I8: 16 | J8: 5 | K8: 5 | L8: 4 | M8: 2 | N8: 25.4 % | O8: 63 | AG8: 1 | AJ8: 1
B9: 2019 | C9: 11. | D9: LaVe | E9: 24 | F9: 0 | G9: 1 | H9: 2 | I9: 43 | J9: 14 | K9: 18 | L9: 10 | M9: 1 | N9: 34.1 % | O9: 126
B10: 2020 | C10: 12. | D10: MyVe | E10: 6 | F10: 0 | G10: 1 | H10: 0 | I10: 7 | J10: 1 | K10: 1 | L10: 4 | M10: 1 | N10: 31.8 % | O10: 22
B11: 2021 | C11: 11. | D11: MyVe | E11: 22 | F11: 0 | G11: 7 | H11: 1 | I11: 34 | J11: 3 | K11: 6 | L11: 18 | M11: 7 | N11: 44.2 % | O11: 77 | Z11: 3 | AA11: 0 | AB11: 0 | AC11: 1 | AD11: 5
B12: 2022 | C12: 6. | D12: Mailajuniorit | F12: ykköspesis | O12: 6
B13: Yhteensä | E13: =SUM(E4:E12) -> 66 | F13: 0 | G13: 11 | H13: 4 | I13: 101 | J13: 23 | K13: 31 | L13: 36 | M13: 11 | N13: =PRODUCT(I13/O13) -> 33.7 % | O13: =SUM(O4:O12) -> 300 | U13: 0 | V13: 0 | W13: 0 | X13: 0 | Y13: 0 | Z13: 3 | AA13: 0 | AB13: 0 | AC13: 1 | AD13: 5 | AE13: 0 | AF13: 0 | AG13: 2 | AH13: 0 | AI13: 1 | AJ13: 1
B14: Pesispörssi | D14: =SUM(F13:H13)+((I13-F13-G13)/3)+(E13/3)+(AE13*25)+(AF13*25)+(AG13*10)+(AH13*25)+(AI13*20)+(AJ13*15)-20 -> 102.0
B16: URA SUPERISSA | E16: OTT | F16: KUN | G16: LÖI | H16: TOI | I16: KL | K16: ka/L | L16: ka/T | M16: ka/KL | N16: K - % | P16: ENSIMMÄISET
B17: Runkosarja | E17: =PRODUCT(E13) -> 66 | F17: =PRODUCT(F13) -> 0 | G17: =PRODUCT(G13) -> 11 | H17: =PRODUCT(H13) -> 4 | I17: =PRODUCT(I13) -> 101 | K17: =PRODUCT((F17+G17)/E17) -> 0.17 | L17: =PRODUCT(H17/E17) -> 0.06 | M17: =PRODUCT(I17/E17) -> 1.53 | N17: =PRODUCT(N13) -> 33.7 % | O17: =PRODUCT(O13) -> 300 | P17: Ottelu | R17: 17.06. 2017 Pesäkarhut - Manse PP 0-1 (1-1, 2-2, 0-1) | AC17: 1. ottelu | AE17: 18 v 5 kk 15 pv
B18: Ylempi loppusarja | P18: Lyöty | R18: 18.05. 2018 Pesäkarhut - Virkiä 2-0 (1-0, 4-1) | AC18: 3. ottelu | AE18: 19 v 4 kk 16 pv
B19: Alempi loppusarja | E19: =PRODUCT(Z13) -> 3 | F19: =PRODUCT(AA13) -> 0 | G19: 0 | H19: 1 | I19: 5 | K19: =PRODUCT((F19+G19)/E19) -> 0.00 | L19: =PRODUCT(H19/E19) -> 0.33 | M19: =PRODUCT(I19/E19) -> 1.67 | N19: =PRODUCT(I19/O19) -> 55.6 % | O19: 9 | P19: Tuotu | R19: 27.07. 2018 KeKi - Pesäkarhut 1-0 (4-2, 4-4) | AC19: 13. ottelu | AE19: 19 v 6 kk 25 pv
B20: KAIKKI | E20: =SUM(E17:E19) -> 69 | F20: =SUM(F17:F19) -> 0 | G20: =SUM(G17:G19) -> 11 | H20: =SUM(H17:H19) -> 5 | I20: =SUM(I17:I19) -> 106 | K20: =PRODUCT((F20+G20)/E20) -> 0.16 | L20: =PRODUCT(H20/E20) -> 0.07 | M20: =PRODUCT(I20/E20) -> 1.54 | N20: =PRODUCT(I20/O20) -> 34.3 % | O20: =SUM(O17:O19) -> 309 | P20: Kunnari
B22: Seurat | D22: Pesäkarhut = Pesäkarhut, Pori (1985), kasvattajaseura
D23: LaVe = Lappajärven Veikot (1911)
D24: MyVe = Mynämäen Vesa (1920)
D25: Mailajuniorit (2013)
